Cogmind - Beta 14 @@@ ROGUE MODE // 2024.08.14 @ 00:30:14 Player: Darcyisverycute Result: Destroyed by D-53 Grenadier with Mini Grenade Launcher Performance ------------- Evolutions (0) 0 Regions Visited (4) 800 Robots Destroyed (17) 85 Value Destroyed (361) 361 Prototype IDs (0) 0 Alien Tech Used (0) 0 Bonus (0) 0 TOTAL SCORE: 1246 Bonus ------- None Cogmind --------- Core Integrity 0/250 Matter 290/300 Energy 105/125 System Corruption 0% Temperature Cool (9) Movement Core (250) Ox4 Location -9/Mines Parts ------- > --- POWER (1) -------- Light Ion Engine > --- PROPULSION (2) --- (None) > --- UTILITY (2) ------ Medium Storage Unit Targeting Computer > --- WEAPON (2) ------- Light Assault Rifle > --- INVENTORY (10) --- Ion Engine Light Ion Engine Light Ion Engine Small Storage Unit Huge Storage Unit Signal Interpreter Bomb Drone Bay Light Assault Rifle Peak State ------------ > --- POWER ------------ Light Ion Engine > --- PROPULSION ------- Aluminum Leg Aluminum Leg > --- UTILITY ---------- Small Storage Unit Targeting Computer > --- WEAPON ----------- Small Laser Grenade Launcher > --- INVENTORY -------- Ion Engine Light Ion Engine Huge Storage Unit Signal Interpreter Bomb Drone Bay Light Assault Rifle Light Assault Rifle [Rating: 9] Favorites ----------- Power Light Ion Engine Engine Light Ion Engine Propulsion Aluminum Leg Leg Aluminum Leg Utility Targeting Computer Storage Small Storage Unit Processor Targeting Computer Weapon Small Laser Energy Gun Small Laser Ballistic Gun Light Assault Rifle Launcher Grenade Launcher Build | -11 -10 -10 -10 -9 ------- Run | Yrd Mat Min Exi Min Slots Evolved . | . . . . . Power . | . . . . . Propulsion . | . . . . . Utility . | . . . . . Weapon . | . . . . . Parts Attached 15 | 4 7 1 1 2 Power 3 | 1 1 . . 1 Engine 3 | 1 1 . . 1 Core . | . . . . . Reactor . | . . . . . Propulsion 2 | 2 . . . . Treads . | . . . . . Leg 2 | 2 . . . . Wheel . | . . . . . Hover . | . . . . . Flight . | . . . . . Utility 3 | 1 1 . 1 . Device . | . . . . . Storage 2 | 1 . . 1 . Processor 1 | . 1 . . . Hackware . | . . . . . Protection . | . . . . . Artifact . | . . . . . Weapon 7 | . 5 1 . 1 Energy Gun 3 | . 3 . . . Energy Cannon . | . . . . . Ballistic Gun 2 | . 1 . . 1 Ballistic Cannon . | . . . . . Launcher 2 | . 1 1 . . Special Weapon . | . . . . . Impact Weapon . | . . . . . Slashing Weapon . | . . . . . Piercing Weapon . | . . . . . Special Melee Weapon . | . . . . . Unidentified Prototypes . | . . . . . Parts Lost 6 | . 2 . . 4 Power . | . . . . . Propulsion 2 | . . . . 2 Utility . | . . . . . Weapon 4 | . 2 . . 2 Highest Loss Streak 3 | . 1 . . 3 To Critical Strikes . | . . . . . Average Slot Usage (%) 95 | . 92 100 100 84 Engine 14 | . 14 14 14 14 Leg 26 | . 28 28 28 13 Storage 14 | . 14 14 14 14 Processor 12 | . 10 14 14 14 Energy Gun 16 | . 20 14 14 14 Launcher 9 | . . 14 14 14 Peak Build Rating 9 | 4 7 9 9 8 Average Rating 7 | 2 6 8 8 7 On Entrance 5 | . 4 7 9 9 Naked Turns . | . . . . . Heaviest Build 17 | 10 14 12 17 17 Greatest Support 20 | 20 20 20 20 10 Greatest Overweight (x) 1 | . . . . 1 Average Overweight (x) . | . . . . 1 Largest Inventory Capacity 10 | 8 8 8 10 10 Average Capacity 8 | 6 8 8 8 10 Most Carried 10 | 4 6 8 9 10 Average Carried 7 | 2 4 7 8 9 Final Capacity 10 | 8 8 8 10 10 Final Carried 9 | 4 6 8 9 9 Class Distribution -------------------- 100% | Mutant Dominant Class ---------------- Mutant | -10/Materials Mutant | -10/Mines Mutant | -10/Exiles Mutant | -9/Mines Resources | -11 -10 -10 -10 -9 ----------- Run | Yrd Mat Min Exi Min Matter Collected 369 | 219 86 11 29 24 Remotely . | . . . . . Salvage Created 415 | . 369 11 . 35 Parts 35 | . 23 6 . 6 Haulers Intercepted . | . . . . . Recyclers Shooed 1 | . 1 . . . Parts Field Recycled . | . . . . . Retrieved Matter . | . . . . . Parts Self-Destructed . | . . . . . Prevented . | . . . . . Kills | -11 -10 -10 -10 -9 ------- Run | Yrd Mat Min Exi Min Combat Hostiles Destroyed 13 | . 8 3 . 2 Guns 8 | . 7 . . 1 AOE 5 | . 1 3 . 1 Classes Destroyed 4 | . 3 . . 1 Tunneler 1 | . . . . 1 Watcher 3 | . 3 . . . Swarmer 8 | . 3 3 . 2 Grunt 5 | . 5 . . . Best Kill Streak 3 | . 3 3 . 2 Combat Bots Only 3 | . 3 3 . 2 Max Kills in Single Turn 3 | . 1 3 . 1 Gunslinging . | . . . . . Exploded 3 | . 1 3 . 1 Melee . | . . . . . Uniques/NPCs Destroyed . | . . . . . Combat | -11 -10 -10 -10 -9 -------- Run | Yrd Mat Min Exi Min Hostile Shots Fired 59 | . 41 3 . 15 Missed 19 | . 12 3 . 4 Damage Taken 794 | . 420 . . 374 Core 251 | . 97 . . 154 Absorbed by Shields . | . . . . . Core Remaining (%) 100 | 100 . . . . Volleys Fired 40 | . 33 1 . 6 Largest 2 | . 2 2 . 2 Hottest 80 | . 80 70 . 70 Shots Fired 76 | . 65 2 . 9 Gun 71 | . 64 1 . 6 Cannon . | . . . . . Launcher 5 | . 1 1 . 3 Special . | . . . . . Kinetic . | . . . . . Thermal 24 | . 17 1 . 6 Explosive 5 | . 1 1 . 3 Electromagnetic 47 | . 47 . . . Robot Hit Streak 13 | . 10 . . 13 Robot Miss Streak 2 | . 2 . . 1 Penetration Max . | . . . . . Secondary Targets . | . . . . . Shots Hit Robots 48 | . 43 . . 5 Core Hits 25 | . 19 3 . 3 Critical Kills . | . . . . . Critical Parts Destroyed . | . . . . . Critical Strikes 1 | . 1 . . . Corrupt 1 | . 1 . . . Melee Attacks . | . . . . . Impact . | . . . . . Slashing . | . . . . . Piercing . | . . . . . Sneak Attacks . | . . . . . Combat Hostiles . | . . . . . Follow-up Attacks . | . . . . . Damage Inflicted 961 | . 679 108 . 174 Guns 625 | . 593 . . 32 Cannons . | . . . . . Explosions 336 | . 86 108 . 142 Melee . | . . . . . Ramming . | . . . . . Kinetic . | . . . . . Thermal 219 | . 187 . . 32 Explosive 250 | . . 108 . 142 Electromagnetic 492 | . 492 . . . Impact . | . . . . . Slashing . | . . . . . Piercing . | . . . . . Highest Corruption . | . . . . . Average Corruption . | . . . . . Corruption Purged . | . . . . . Corruption Blocked . | . . . . . Overload Shots . | . . . . . Overflow Damage 27 | . 8 5 . 14 Projectiles . | . . . . . Explosions 27 | . 8 5 . 14 Melee . | . . . . . Knockbacks . | . . . . . Impact . | . . . . . Kinetic . | . . . . . Secondary . | . . . . . Self-Inflicted Damage 89 | . 38 . . 51 Shots 3 | . 1 . . 2 Rammed . | . . . . . Targets Rammed . | . . . . . Kicked . | . . . . . Crushed . | . . . . . Highest Temperature 315 | . 315 9 . 18 Average Temperature 100 | . 111 6 . 11 Received Heat Transfer 180 | . 180 . . . Siege Activations . | . . . . . Robots Corrupted . | . . . . . Combat Hostiles . | . . . . . Parts Fried 1 | . 1 . . . Impact Corruptions . | . . . . . Robots Melted . | . . . . . Combat Hostiles . | . . . . . Parts Melted . | . . . . . Heat Transferred 400 | . 325 . . 75 Parts Sabotaged . | . . . . . Parts Stolen . | . . . . . Parts Stripped . | . . . . . Power Chain Reactions 2 | . 2 . . . Alert | -11 -10 -10 -10 -9 ------- Run | Yrd Mat Min Exi Min Peak Influence 355 | . 355 226 . 75 Initial 138 | . . 138 . . Average 158 | . 175 225 . 69 Maximum Alert Level 1 | . 1 1 . . Low Security (%) 53 | 100 59 . . 100 Level 1 46 | . 40 99 . . Level 2 . | . . . . . Level 3 . | . . . . . Level 4 . | . . . . . Level 5 . | . . . . . High Security . | . . . . . Max Security . | . . . . . Squads Dispatched . | . . . . . Investigation . | . . . . . Extermination . | . . . . . Reinforcement . | . . . . . Assault . | . . . . . Garrison . | . . . . . Intercept . | . . . . . Searches Triggered . | . . . . . Construction Impeded . | . . . . . Haulers Reinforced . | . . . . . Active Scanning Responses . | . . . . . Cargo Convoy Interrupts . | . . . . . Stealth | -11 -10 -10 -10 -9 --------- Run | Yrd Mat Min Exi Min Distress Signals 1 | . 1 . . . Communications Jammed . | . . . . . Distress Signals . | . . . . . Times Spotted 23 | . 15 3 . 5 Peak Tracking Total 3 | . 3 3 . 3 Tactical Retreats 2 | . 2 . . . Traps | -11 -10 -10 -10 -9 ------- Run | Yrd Mat Min Exi Min Traps Triggered . | . . . . . Indirectly . | . . . . . Trap Hack Attempts . | . . . . . Triggered . | . . . . . Disarmed . | . . . . . Reprogrammed . | . . . . . Reused . | . . . . . Traps Extracted . | . . . . . Installed . | . . . . . Triggered . | . . . . . Machines | -11 -10 -10 -10 -9 ---------- Run | Yrd Mat Min Exi Min Machines Disabled 3 | . 1 1 . 1 Max in Single Turn 1 | . 1 1 . 1 Machines Repaired . | . . . . . Machines Dismantled . | . . . . . Machines Sabotaged . | . . . . . Overloaded Fab Kills . | . . . . . Hacking | -11 -10 -10 -10 -9 --------- Run | Yrd Mat Min Exi Min Machines Accessed 7 | . 2 1 4 . Terminals 2 | . 2 . . . Fabricators . | . . . . . Repair Stations . | . . . . . Recycling Units . | . . . . . Scanalyzers . | . . . . . Garrison Access . | . . . . . Total Hacks 33 | . 2 1 30 . Successful 31 | . . 1 30 . Failed 2 | . 2 . . . Catastrophic 2 | . 2 . . . Database Lockouts . | . . . . . Manual 2 | . 2 . . . Terminals 2 | . 2 . . . Fabricators . | . . . . . Repair Stations . | . . . . . Recycling Units . | . . . . . Scanalyzers . | . . . . . Garrison Access . | . . . . . Terminal Hacks 31 | . . 1 30 . Record 30 | . . . 30 . Open Door 1 | . . 1 . . Fabricator Hacks . | . . . . . Repair Station Hacks . | . . . . . Recycling Unit Hacks . | . . . . . Scanalyzer . | . . . . . Garrison Access Hacks . | . . . . . Unauthorized Hacks . | . . . . . Terminals . | . . . . . Fabricators . | . . . . . Repair Stations . | . . . . . Recycling Units . | . . . . . Scanalyzers . | . . . . . Garrison Access . | . . . . . Data Cores Recovered . | . . . . . Used . | . . . . . Hacking Detections 2 | . 2 . . . Full Trace Events . | . . . . . Feedback Events . | . . . . . Feedback Blocked . | . . . . . Robot Schematics Acquired . | . . . . . Robots Built . | . . . . . Authchips . | . . . . . Time . | . . . . . Total Robot Build Rating . | . . . . . Part Schematics Acquired . | . . . . . Parts Built . | . . . . . Authchips . | . . . . . Time . | . . . . . Total Part Build Rating . | . . . . . Parts Repaired . | . . . . . Time . | . . . . . Parts Recycled . | . . . . . Recycled Matter . | . . . . . Retrieved Matter . | . . . . . Retrieved Components . | . . . . . Parts Scanalyzed . | . . . . . Part Schematics Acquired . | . . . . . Parts Damaged . | . . . . . Bothacking | -11 -10 -10 -10 -9 ------------ Run | Yrd Mat Min Exi Min Used RIF Installer . | . . . . . Robots Hacked . | . . . . . Non-combat . | . . . . . Combat . | . . . . . Robot Hacks Applied . | . . . . . Relay Couplers Released . | . . . . . Fabnet Peak Effective % . | . . . . . Robots Rewired . | . . . . . Allies Hacked . | . . . . . Hacks Repelled . | . . . . . Allies | -11 -10 -10 -10 -9 -------- Run | Yrd Mat Min Exi Min Total Allies 1 | . . 1 . . Largest Group 1 | . . 1 1 . Highest-Rated Group 31 | . . 31 31 . Highest-Rated Ally 31 | . . 31 31 . Total Orders . | . . . . . Ally Attacks . | . . . . . Total Damage . | . . . . . Kills . | . . . . . Allies Corrupted . | . . . . . Allies Melted . | . . . . . Intel | -11 -10 -10 -10 -9 ------- Run | Yrd Mat Min Exi Min Robot Analysis Total . | . . . . . Derelict Logs Recovered 1 | . . 1 . . Drone Launches . | . . . . . Drone Recoveries . | . . . . . Exploration | -11 -10 -10 -10 -9 ------------- Run | Yrd Mat Min Exi Min Turns Passed 1382 | 58 393 235 546 150 Spaces Moved 966 | 42 217 185 452 70 Core 5 | 5 . . . . Treads . | . . . . . Legs 961 | 37 217 185 452 70 Wheels . | . . . . . Hover . | . . . . . Flight . | . . . . . Fastest Speed 50 | 50 120 120 120 190 Average Speed 124 | 111 120 120 120 190 Slowest Speed 190 | 120 120 120 120 190 Overloaded Moves . | . . . . . Propulsion Burnouts . | . . . . . Robots Hopped . | . . . . . Cave-ins Triggered . | . . . . . Exploration Rate (%) 38 | 3 46 52 70 19 Regions Visited 4 Branch Regions 3 Pre-discovered Areas 2 | . . 1 1 . Known Exits Taken . | . . . . . Unknown Exits Taken 4 | 1 1 1 1 . Scrap Searched . | . . . . . Spaces Dug . | . . . . . Terrain Destroyed 44 | . 13 3 . 28 Melee . | . . . . . Projectile . | . . . . . AOE 44 | . 13 3 . 28 Terrain Rammed . | . . . . . Walls Destroyed . | . . . . . Machines Disabled . | . . . . . Actions | -11 -10 -10 -10 -9 --------- Run | Yrd Mat Min Exi Min Total 1064 | 51 284 196 455 78 Wait 27 | 2 20 5 . . Move 962 | 41 216 184 451 70 Hop . | . . . . . Pick Up 15 | 4 6 3 2 . Fast Attach 6 | 4 2 . . . Attach 5 | . 4 . . 1 Detach 1 | . 1 . . . Swap 4 | . 1 1 1 1 Drop 4 | . 1 2 1 . Fire 40 | . 33 1 . 6 Melee . | . . . . . Ram . | . . . . . Kick . | . . . . . Crush . | . . . . . Escape Stasis . | . . . . . Rewire . | . . . . . Trap . | . . . . . Miscellaneous . | . . . . . Route ------- -11/Scrapyard -10/Materials (discovered 2 exits: [*Mat] / *Min) -10/Mines -10/Exiles -9/Mines History --------- Turn | Location | Event 18 | -11/Scrapyard | Discovered new exit (range 16) 59 | -11/Scrapyard | Entered Materials 291 | -10/Materials | Discovered new exit (range 16) 317 | -10/Materials | Build established: Mutant 417 | -10/Materials | Discovered new exit (range 15) 452 | -10/Materials | Entered Mines 505 | -10/Mines | Learned location of Mines (-9) 576 | -10/Mines | Received a Mining Laser from a helpful Derelict 647 | -10/Mines | Found the Drone Emporium 656 | -10/Mines | Found Prototype Device 679 | -10/Mines | Deemed a non-threat by the Exiles lab entrance 679 | -10/Mines | Discovered new exit (range 5) 687 | -10/Mines | Entered Exiles 687 | -10/Exiles | Accompanied by 1 ally 716 | -10/Exiles | Met 8R-AWN 737 | -10/Exiles | Met EX-HEX 785 | -10/Exiles | Met EX-BIN 888 | -10/Exiles | Met EX-DEC 896 | -10/Exiles | Learned location of Zion (-6) 1160 | -10/Exiles | Discovered new exit (range 14) 1233 | -10/Exiles | Entered Mines 1360 | -9/Mines | Assembled infested the area 1380 | -9/Mines | Core integrity fell below 50% 1383 | -9/Mines | Core integrity fell below 20% 1383 | -9/Mines | Destroyed by D-53 Grenadier with Mini Grenade Launcher Last Messages --------------- 01233_ Aluminum Leg destroyed. 01233_ Destroyed Aluminum Leg. 01234_ C-30 ARC bursts open, deploying its payload. 01234_ S-10 Pest unfolds itself. 01234_ S-10 Pest destroyed. 01236_ Destroyed Flight Unit. 01241_ S-10 Pest destroyed. 01243_ Acquired 12 matter. 01245_ Acquired 3 matter. 01253_ Acquired 9 matter. 01321_ K-01 Serf collects debris. 01360_ ALERT: Infestation in the mines, dispatching Demolisher response squad. 01376_ C-30 ARC bursts open, deploying its payload. 01376_ D-53 Grenadier unfolds itself. 01378_ The unstable cave ceiling collapses. 01378_ Aluminum Leg destroyed. 01380_ T-07 Excavator destroyed. 01381_ Grenade Launcher destroyed. 01383_ Sml. Laser destroyed. Map ----- +----------------------------------------------------+ | ??????????????????#####?# ##### #### " % =###### | | ????????????????????????# " [ = | | ????????????????????????### ######### [ #### # | | ??????????????????????????# #???????### # # ##???? | | ??????????????????????????# #?????????#######????? | | ??????????????????????##### #????????????????????? | | ??????????????????????# #????????????????????? | | ??????????????????????# #####????????????????????? | | ??????????????????????# #????????????????????????? | | ??????????????????????# #????????????????????????? | | ??????????????????????# #????????????????????????? | | ??????????????????????# #????????????????????????? | | ??????????????????????# #????????????????????????? | | ??????????????????????# #????????????????????????? | | ??????????????????????# #????????????????????????? | | ??????????????????????# #????????????????????????? | | ??????????????????????# #????????????????????????? | | ??????????????????????# #????????????????????????? | | ??????????????????????#t#????????????????????????? | | ?????????? ????????# #????????????????????????? | | ????????? ??????# #####????????????????????? | | ????????? % ??### ##???????????????????? | | ???????? | d # ##??????????????????? | | ????????????# % d #??????????????????? | | ?????????????# #??????????????????? | | ???????????????# @ #??????????????????? | | ????????????????# #??????????????????? | | ????????????????## #??????????????????? | | ?????????????????# ##??????????????????? | | ?????????????????## #??????????????????? | | ??????????????????## ###??????????????????? | | ???????????????????# #???????????????????? | | ???????????????????# #???????????????????? | | ???????????????????# ##???????????????????? | | ???????????????????# k ##????????????????????? | | ???????????????????# ##?????????????????????? | | ???????????????????# #####??????????????????????? | | ???????????????????# ???????????????????????????? | | ?????????????????? a ???????????????????????????? | | ?????????????????### ???????????????????????????? | | ???????????????????# ????????????????????????????? | | ???????????????????#?????????????????????????????? | | ?????????????????????????????????????????????????? | | ?????????????????????????????????????????????????? | | ?????????????????????????????????????????????????? | | ?????????????????????????????????????????????????? | | ?????????????????????????????????????????????????? | | ?????????????????????????????????????????????????? | | ?????????????????????????????????????????????????? | | ?????????????????????????????????????????????????? | +----------------------------------------------------+ Best States ------------- Heat Dissipation 25 Energy Generation 10 Energy Capacity 250 Matter Stores 300 Matter Capacity 300 Sight Range 16 Terrain Scan Density 10 Evasion (%) 55 Targeting Accuracy 5 Item Schematics ----------------- None Robot Schematics ------------------ None Fabricated ------------ Nothing Alien Tech Used ----------------- None Achievements -------------- None Challenges ------------ None Game ------ Seed TractorMinesnifferShield Manual? 0 Play Time 00:10:31 Cumulative 68.3 hours Start 2024.08.14 @ 00:20:35 End 2024.08.14 @ 00:30:14 Sessions 1 Manual Loads 0 Difficulty Rogue Special Mode None Game No. 37 Rogue 29 Adventurer 8 Explorer 0 Win Type - Total 1 Types 1/0/0/0/0/0/0/0/0 Lore% 25 Gallery% 45 Achievement% 42 Wizard Run 0 Options --------- Layout 0 ASCII 0 Keyboard 1 Movement Numpad Keybinds 1 Fullscreen 1 Font 18/SmallcapsGlow Map View 76x50 Zoom Use 0% Tactical HUD 1 Map Filters NONE Filters NONE Steam 1 RUN: 31a1566a-92f2-42a6-ad44-866f0fecfbeb